Cogmind - Beta 16 @@@ ROGUE MODE // 2025.12.30 @ 21:17:25 Player: telemetry Result: Destroyed by G-34 Mercenary with Small Laser Performance ------------- Evolutions (0) 0 Regions Visited (1) 200 Robots Destroyed (22) 110 Value Destroyed (395) 395 Prototype IDs (0) 0 Alien Tech Used (0) 0 Bonus (0) 0 TOTAL SCORE: 705 Bonus ------- None Cogmind --------- Core Integrity 0/250 Matter 387/500 Energy 100/100 System Corruption 0% Temperature Cool (6) Movement Core (400) Ox7 Location -10/Materials Parts ------- > --- POWER (1) -------- (None) > --- PROPULSION (2) --- (None) > --- UTILITY (2) ------ Large Storage Unit High-capacity Matter Pod > --- WEAPON (2) ------- (None) > --- INVENTORY (15) --- Light Treads Medium Storage Unit High-capacity Storage Unit Weight Redist. System Structural Scanner Grenade Launcher Peak State ------------ > --- POWER ------------ Light Ion Engine > --- PROPULSION ------- Hover Unit Flight Unit > --- UTILITY ---------- Small Storage Unit Targeting Computer > --- WEAPON ----------- Assault Rifle Light Assault Rifle > --- INVENTORY -------- High-capacity Storage Unit High-capacity Matter Pod Structural Scanner Welding Torch [Rating: 7] Favorites ----------- Power Ion Engine Engine Ion Engine Propulsion Light Treads Treads Light Treads Wheel Compact Wheel Hover Unit Hover Unit Flight Unit Flight Unit Utility Small Storage Unit Storage Small Storage Unit Processor Targeting Computer Weapon Assault Rifle Ballistic Gun Assault Rifle Special Weapon Welding Torch Build | -11 -10 ------- Run | Yrd Mat Slots Evolved . | . . Power . | . . Propulsion . | . . Utility . | . . Weapon . | . . Parts Attached 17 | 6 11 Power 3 | 1 2 Engine 3 | 1 2 Core . | . . Reactor . | . . Propulsion 7 | 2 5 Treads 2 | 2 . Leg . | . . Wheel 2 | . 2 Hover 1 | . 1 Flight 2 | . 2 Utility 4 | 1 3 Device . | . . Storage 3 | 1 2 Processor 1 | . 1 Hackware . | . . Protection . | . . Artifact . | . . Weapon 3 | 2 1 Energy Gun . | . . Energy Cannon . | . . Ballistic Gun 2 | 2 . Ballistic Cannon . | . . Launcher . | . . Special Weapon 1 | . 1 Impact Weapon . | . . Slashing Weapon . | . . Piercing Weapon . | . . Special Melee Weapon . | . . Unidentified Prototypes . | . . Parts Lost 9 | . 9 Power 2 | . 2 Propulsion 4 | . 4 Utility . | . . Weapon 3 | . 3 Highest Loss Streak 6 | . 6 To Critical Strikes . | . . Average Backups 3 | . 3 Power . | . . Propulsion . | . . Utility 1 | . 2 Weapon . | . . Tool/Special . | . . Unused Backups 6 | . 6 Power . | . . Propulsion 1 | . 1 Utility 4 | . 4 Weapon 1 | . 1 Tool/Special . | . . Average Slot Usage (%) 84 | . 84 Engine 12 | . 12 Treads 16 | . 16 Wheel 6 | . 6 Flight 1 | . 1 Storage 17 | . 17 Processor 1 | . 1 Ballistic Gun 24 | . 24 Peak Build Rating 7 | 6 7 Average Rating 5 | 4 5 On Entrance 3 | . 6 Avg Prop Armor Cover (%) 7 | . 7 Naked Turns . | . . Heaviest Build 32 | 13 32 Greatest Support 40 | 40 40 Greatest Overweight (x) 3 | . 3 Average Overweight (x) . | . . Largest Inventory Capacity 15 | 8 15 Average Capacity 8 | 6 9 Most Carried 8 | 2 8 Average Carried 3 | . 3 Final Capacity 15 | 8 15 Final Carried 6 | 1 6 Class Distribution -------------------- 100% | Mutant Dominant Class ---------------- Mutant | -10/Materials Resources | -11 -10 ----------- Run | Yrd Mat Matter Collected 567 | 123 444 Remotely . | . . Salvage Created 596 | . 596 Parts 50 | . 50 Haulers Intercepted 1 | . 1 Recyclers Shooed . | . . Parts Field Recycled . | . . Retrieved Matter . | . . Parts Self-Destructed . | . . Prevented . | . . Parts Restored . | . . Kills | -11 -10 ------- Run | Yrd Mat Combat Hostiles Destroyed 13 | . 13 Guns 12 | . 12 AOE 1 | . 1 Classes Destroyed 7 | . 7 Worker 3 | . 3 Builder 1 | . 1 Hauler 1 | . 1 Recycler 1 | . 1 Watcher 3 | . 3 Swarmer 6 | . 6 Grunt 7 | . 7 Best Kill Streak 4 | . 4 Combat Bots Only 3 | . 3 Max Kills in Single Turn 2 | . 2 Gunslinging . | . . Exploded 1 | . 1 Melee . | . . Uniques/NPCs Destroyed . | . . Combat | -11 -10 -------- Run | Yrd Mat Hostile Shots Fired 91 | . 91 Missed 12 | . 12 Hits 79 | . 79 Projectile 79 | . 79 Damage Taken 989 | . 989 Core 258 | . 258 Absorbed by Shields . | . . Core Remaining (%) 100 | 100 . Volleys Fired 57 | . 57 Largest 2 | . 2 Hottest 40 | . 40 Shots Fired 103 | . 103 Gun 94 | . 94 Cannon . | . . Launcher . | . . Special 9 | . 9 Kinetic 94 | . 94 Thermal 9 | . 9 Explosive . | . . Electromagnetic . | . . Robot Hit Streak 8 | . 8 Robot Miss Streak 3 | . 3 Penetration Max . | . . Secondary Targets 2 | . 2 Max Gunslinging Chain 1 | . 1 Shots Hit Robots 67 | . 67 Core Hits 40 | . 40 Critical Kills . | . . Critical Parts Destroyed 2 | . 2 Critical Strikes 2 | . 2 Destroy 2 | . 2 Melee Attacks . | . . Impact . | . . Slashing . | . . Piercing . | . . Sneak Attacks . | . . Combat Hostiles . | . . Follow-up Attacks . | . . Damage Inflicted 911 | . 911 Guns 647 | . 647 Cannons . | . . Explosions 172 | . 172 Melee . | . . Ramming 72 | . 72 Kinetic 647 | . 647 Thermal 20 | . 20 Explosive . | . . Electromagnetic 172 | . 172 Impact . | . . Slashing . | . . Piercing . | . . Highest Corruption . | . . Average Corruption . | . . Corruption Purged . | . . Corruption Blocked . | . . Overload Shots . | . . Overflow Damage . | . . Projectiles . | . . Explosions . | . . Melee . | . . Knockbacks 1 | . 1 Impact 1 | . 1 Kinetic . | . . Secondary . | . . Self-Inflicted Damage 148 | . 148 Shots 3 | . 3 Rammed 22 | . 22 Targets Rammed 22 | . 22 Kicked . | . . Crushed . | . . Highest Temperature 18 | . 18 Average Temperature 6 | . 6 Received Heat Transfer 369 | . 369 Siege Activations . | . . Martial Activations . | . . Shielding Activations . | . . Robots Disrupted . | . . Combat Hostiles . | . . Robots Corrupted . | . . Combat Hostiles . | . . Parts Fried . | . . Impact Corruptions . | . . Robots Melted . | . . Combat Hostiles . | . . Parts Melted . | . . Heat Transferred 150 | . 150 Parts Sabotaged . | . . Parts Stolen . | . . Parts Stripped . | . . Power Chain Reactions 1 | . 1 Alert | -11 -10 ------- Run | Yrd Mat Maximum Alert Level . | . . Low Security (%) 100 | 100 100 Level 1 . | . . Level 2 . | . . Level 3 . | . . Level 4 . | . . Level 5 . | . . High Security . | . . Max Security . | . . Peak Influence 137 | . 137 Initial . | . . Average 40 | . 43 Influence Increases 420 | . 420 Destroy 0b10 Robot/C 260 | . 260 Destroy 0b10 Robot/NC 45 | . 45 Destroy Leader 58 | . 58 Successful Hack 7 | . 7 Disable Machine 30 | . 30 Destroy Structure 5 | . 5 Lose Combat Pursuer 15 | . 15 Influence Decreases 420 | . 420 Time Decay 269 | . 269 Lost Part 30 | . 30 Purge Threat 121 | . 121 Squads Dispatched 3 | . 3 Investigation 2 | . 2 Extermination . | . . Reinforcement 1 | . 1 Assault . | . . Garrison . | . . Intercept . | . . Searches Triggered . | . . Construction Impeded . | . . Haulers Reinforced . | . . Active Scanning Responses . | . . Cargo Convoy Interrupts . | . . Stealth | -11 -10 --------- Run | Yrd Mat Distress Signals 3 | . 3 Communications Jammed . | . . Distress Signals . | . . Times Spotted 24 | . 24 Peak Tracking Total 4 | . 4 Tactical Retreats 1 | . 1 Traps | -11 -10 ------- Run | Yrd Mat Traps Triggered 1 | . 1 Indirectly . | . . Trap Hack Attempts . | . . Triggered . | . . Disarmed . | . . Reprogrammed . | . . Reused . | . . Traps Extracted . | . . Installed . | . . Triggered . | . . Machines | -11 -10 ---------- Run | Yrd Mat Machines Disabled 2 | . 2 Max in Single Turn 1 | . 1 Machines Repaired . | . . Machines Dismantled . | . . Machines Sabotaged . | . . Overloaded Fab Kills . | . . Hacking | -11 -10 --------- Run | Yrd Mat Machines Accessed 6 | . 6 Terminals 4 | . 4 Fabricators . | . . Repair Stations 1 | . 1 Recycling Units 1 | . 1 Scanalyzers . | . . Garrison Access . | . . Total Hacks 19 | . 19 Successful 6 | . 6 Failed 12 | . 12 Catastrophic 2 | . 2 Database Lockouts 1 | . 1 Manual 14 | . 14 Terminals 13 | . 13 Fabricators . | . . Repair Stations 3 | . 3 Recycling Units 3 | . 3 Scanalyzers . | . . Garrison Access . | . . Terminal Hacks 4 | . 4 Robot Analysis 1 | . 1 Unreport Threat 1 | . 1 Locate Traps 1 | . 1 Zone Layout 1 | . 1 Fabricator Hacks . | . . Repair Station Hacks . | . . Recycling Unit Hacks . | . . Scanalyzer . | . . Garrison Access Hacks . | . . Unauthorized Hacks . | . . Terminals . | . . Fabricators . | . . Repair Stations . | . . Recycling Units . | . . Scanalyzers . | . . Garrison Access . | . . Data Cores Recovered . | . . Used . | . . Hacking Detections 5 | . 5 Full Trace Events 2 | . 2 Feedback Events . | . . Feedback Blocked . | . . Robot Schematics Acquired . | . . Robots Built . | . . Authchips . | . . Time . | . . Total Robot Build Rating . | . . Part Schematics Acquired . | . . Parts Built . | . . Authchips . | . . Time . | . . Total Part Build Rating . | . . Part Studies Acquired . | . . Parts Repaired . | . . Time . | . . Parts Recycled . | . . Recycled Matter . | . . Retrieved Matter . | . . Retrieved Components . | . . Parts Scanalyzed . | . . Part Schematics Acquired . | . . Parts Damaged . | . . Bothacking | -11 -10 ------------ Run | Yrd Mat Used RIF Installer . | . . Robots Hacked . | . . Non-combat . | . . Combat . | . . Robot Hacks Applied . | . . Relay Couplers Released . | . . Fabnet Peak Effective % . | . . Robots Rewired . | . . Allies Hacked . | . . Hacks Repelled . | . . Allies | -11 -10 -------- Run | Yrd Mat Total Allies . | . . Largest Group . | . . Highest-Rated Group . | . . Highest-Rated Ally . | . . Total Orders . | . . Ally Attacks . | . . Total Damage . | . . Kills . | . . Allies Corrupted . | . . Allies Melted . | . . Intel | -11 -10 ------- Run | Yrd Mat Active Infowar (turns) . | . . Robot Analysis Total 1 | . 1 Derelict Logs Recovered . | . . Drone Launches . | . . Drone Recoveries . | . . Exploration | -11 -10 ------------- Run | Yrd Mat Turns Passed 931 | 61 870 Spaces Moved 522 | 37 485 Core 14 | 7 7 Treads 293 | 30 263 Legs . | . . Wheels 128 | . 128 Hover 1 | . 1 Flight 86 | . 86 Fastest Speed 37 | 50 37 Average Speed 129 | 139 128 Slowest Speed 200 | 160 200 Overloaded Moves . | . . Propulsion Burnouts . | . . Robots Hopped . | . . Potential Cave-ins . | . . Cave-ins Triggered . | . . Exploration Rate (%) 35 | 3 68 Regions Visited 1 Branch Regions . Pre-discovered Areas . | . . Known Exits Taken . | . . Unknown Exits Taken 1 | 1 . Scrap Searched . | . . Spaces Dug . | . . Terrain Destroyed 3 | . 3 Melee . | . . Projectile . | . . AOE 3 | . 3 Terrain Rammed . | . . Walls Destroyed . | . . Machines Disabled . | . . Actions | -11 -10 --------- Run | Yrd Mat Total 662 | 44 618 Wait 24 | . 24 Move 521 | 36 485 Hop . | . . Pick Up 11 | 2 9 Fast Attach 8 | 5 3 Attach 8 | 1 7 Detach 4 | . 4 Swap 4 | . 4 Drop 3 | . 3 Fire 57 | . 57 Melee . | . . Ram 22 | . 22 Kick . | . . Crush . | . . Escape Stasis . | . . Rewire . | . . Trap . | . . Miscellaneous . | . . Route ------- -11/Scrapyard -10/Materials (discovered 4 exits: [*Mat x3] / [*Min]) History --------- Turn | Location | Event 33 | -11/Scrapyard | Discovered new exit (range 15) 62 | -11/Scrapyard | Entered Materials 110 | -10/Materials | Discovered new exit (range 7) 302 | -10/Materials | Discovered new exit (range 4) 310 | -10/Materials | Build established: Mutant 379 | -10/Materials | Central database locked down 650 | -10/Materials | Discovered new exit (range 17) 827 | -10/Materials | Discovered new exit (range 5) 875 | -10/Materials | Core integrity fell below 50% 917 | -10/Materials | Core integrity fell below 20% 932 | -10/Materials | Destroyed by G-34 Mercenary with Small Laser Last Messages --------------- 00881_ K-01 Serf collects debris. 00891_ G-34 Mercenary heat short circuits Ion Engine. 00891_ K-01 Serf collects debris. 00892_ Welding Torch destroyed. 00893_ Slammed into G-34 Mercenary. 00893_ G-34 Mercenary knocked back. 00894_ Slammed into G-34 Mercenary. 00904_ Com. Wheel destroyed. 00904_ Slammed into G-34 Mercenary. 00904_ Destabilizing: Core damaged (-10). 00905_ Slammed into G-34 Mercenary. 00909_ Ion Engine broken. 00909_ Destabilizing: Short circuit. 00910_ Com. Wheel destroyed. 00911_ Slammed into G-34 Mercenary. 00914_ U-05 Engineer lays Concrete. 00916_ Slammed into G-34 Mercenary. 00926_ Broken Ion Engine destroyed. 00931_ Slammed into G-34 Mercenary. Map ----- +----------------------------------------------------+ | ?????????# # #????????????????????????????? | | ?????????# # #????????????????????????????? | | ?????????# + #????????????????????????????? | | ?????????# # #??????????????? ????????????? | | ?????????# # #??????????????? ????????????? | | ????????## ########?????????????? ????????????? | | ????????# ########????????#???# ????????????? | | ????????# #????????? ??# ???????????? | | ????????# #????????? ??# ???????????? | | ????????# #?????????? ## ##??????????? | | ????????# #### #?????????? # #??????????? | | ????????#######??# #???????????/ #??????????? | | ?????????????????# #???????????# " #??????????? | | ?????????????????# #????????????! #??????????? | | ?????????????????# #????????????# #??????????? | | ?????????????????# #????????????# #??????????? | | ?########????????# #????????????# #??????????? | | ?# #????????# #????????????# #??????????? | | ?# #????????# #????????????# #??????????? | | ?# !!! #????????# #????????????# #??????????? | | ?# !!! #????????# #????????????# #??????????? | | ?# !! #????????# #????????????# #??????????? | | ?# ########## #????????????# #??????????? | | ?#####+## ## ############## #####??????? | | #### g kk #??????? | | # < @ < #??????? | | # = #??????? | | # ## ##+############ #####??????? | | # ## "|"|" #= [* ###### #??????????? | | * + ##""|"|""#=// """# # #??????????? | | # ##########=// R"# # #??????????? | | #### # #=/ """# # #??????????? | | #### # # # # #??????????? | | # """ # """ ## # #??????????? | | # """"" # """ # #?###??????? | | + """"" # """ # # ## #??????? | | #### # """"" # # # # #??????? | | ## ## """ ######+### # ??????? | | ## ## ????## ######## # ##?????? | | ## ## ????# #####??????? | | T"=## ##########????# = #??????????? | | "" ## #????????######+######### ###??????????? | | ## #????????# * == #????# #????????????? | | #"### ########## ! #????# #????????????? | | *%^^ # ! #????# #????????????? | | [^^ + #????# #????????????? | | %%^^ #"" """ #????# #????????????? | | #####+##### #"Y """ #????# #????????????? | | ## ! # #"" """ #????# #????????????? | | ## """ # < # #????# #????????????? | +----------------------------------------------------+ Best States ------------- Heat Dissipation 25 Energy Generation 10 Energy Capacity 250 Matter Stores 385 Matter Capacity 500 Sight Range 16 Terrain Scan Density 10 Evasion (%) 62 Targeting Accuracy 5 Recoil Reduction 2 Item Schematics ----------------- None Robot Schematics ------------------ None Fabricated ------------ Nothing Repaired ---------- Nothing Studied --------- None Alien Tech Used ----------------- None Achievements -------------- None Challenges ------------ None Game ------ Seed LaserCoordinationWartreads Manual? 0 Play Time 00:12:50 Cumulative 20.1 hours Start 2025.12.30 @ 21:07:09 End 2025.12.30 @ 21:17:25 Sessions 1 Manual Loads 0 Difficulty Rogue Special Mode None Game No. 18 Rogue 18 Adventurer 0 Explorer 0 Win Type - Total 0 Types 0/0/0/0/0/0/0/0/0/0 Lore% 19 Gallery% 20 Achievement% 18 Wizard Run 0 Options --------- Layout 1 ASCII 0 Keyboard 0 Movement Numpad Keybinds 0 Fullscreen 1 Font 24/Smallcaps Map View 50x40 Zoom Use 0% Tactical HUD 1 Map Filters NONE Filters NONE Steam 1 RUN: a0b2d4df-010d-41b7-a2bb-fde559750e54